bitfinex-derivatives/quotes_SOLF0:USTF0_20260107
["timestamp","ask_amount","ask_price","bid_price","bid_amount"]
[1767798332036,0.04968175,137.09,137.03,87.61278601]
[1767798332236,6.5695,137.11,137.03,87.61278601]
[1767798332435,6.5699,137.1,137.03,86.28]
[1767798332645,6.5699,137.1,136.99,1.31278601]
[1767798332839,6.5699,137.1,137.02,86.28]
[1767798333041,0.04890602,137.08,137.02,87.59278601]
[1767798334947,124.0,137.12,137.02,87.59278601]
[1767798335646,124.0,137.12,137.03,1.31278601]
[1767798336648,102.1578,137.15,137.04,86.26]
[1767798336843,6.568,137.14,137.03,1.31278601]
[1767798337150,5.48470798,137.16,137.05,1.31278601]
[1767798337151,124.0,137.13,137.05,1.31278601]
[1767798337449,86.3,137.17,137.08,0.05485962]
[1767798337749,124.0,137.16,137.08,0.05485962]
[1767798337947,6.5675,137.15,137.07,86.26]
[1767798338337,0.04820194,137.13,137.07,86.26]
[1767798339246,0.04820194,137.13,137.05,1.31278601]
[1767798339452,0.04820194,137.13,137.06,86.26]
[1767798339839,6.5688,137.12,137.05,1.31278601]
[1767798340144,0.04820194,137.13,137.05,87.57278601]
[1767798340348,6.5688,137.12,137.04,86.26]
[1767798340546,226.1556,137.16,137.04,87.57278601]
[1767798340850,0.04823866,137.1,137.04,87.57278601]
[1767798341748,0.04823866,137.1,137.05,1.31278601]
[1767798342048,6.5679,137.14,137.05,7.88458601]
[1767798342248,6.5679,137.14,137.06,86.24]
[1767798343050,102.1655,137.14,137.05,87.55278601]
[1767798343243,102.1602,137.15,137.05,1.31278601]
[1767798343446,124.0,137.16,137.05,1.31278601]
[1767798343646,102.1652,137.14,137.05,1.31278601]
[1767798344238,102.186,137.12,137.02,1.31278601]
[1767798344554,102.188,137.11,137.01,87.55278601]
[1767798344945,107.67270798,137.11,137.01,87.55278601]
[1767798345139,107.67270798,137.11,137.01,1.31278601]
[1767798345357,6.571,137.08,137.01,1.31278601]
[1767798345546,107.67270798,137.11,137.01,1.31278601]
[1767798345946,102.186,137.12,137.01,1.31278601]
[1767798346151,102.186,137.12,137.01,87.55278601]
[1767798346756,107.67520798,137.11,137.01,87.55278601]
[1767798347255,6.57,137.1,137.01,87.55278601]
[1767798348159,6.57,137.1,137.02,1.31278601]
[1767798348359,6.57,137.1,137.03,86.24]
[1767798349252,6.57,137.1,137.02,87.55278601]
[1767798349558,102.1288,137.19,137.05,1.31278601]
[1767798349750,102.1288,137.19,137.06,86.24]
[1767798350055,108.87807129,137.2,137.07,1.31278601]
[1767798350259,6.5664,137.17,137.11,0.049891]
[1767798350555,93.03427129,137.2,137.11,0.049891]
[1767798350850,93.03427129,137.2,137.1,86.24]
[1767798351052,6.567,137.16,137.1,86.24]
[1767798351245,124.0,137.19,137.1,86.24]
[1767798351447,102.1085,137.22,137.11,1.31278601]
[1767798351653,102.1085,137.22,137.11,87.55278601]
[1767798351857,124.0,137.21,137.11,87.55278601]
[1767798352043,6.5655,137.19,137.11,1.31278601]
[1767798352245,226.1179,137.21,137.11,1.31278601]
[1767798352752,124.0,137.21,137.11,1.31278601]
[1767798353249,226.1173,137.21,137.11,1.31278601]
[1767798353557,124.0,137.21,137.11,1.31278601]
[1767798353762,124.0,137.21,137.12,1.31278601]
[1767798354182,226.1185,137.21,137.12,1.31278601]
[1767798354560,102.1283,137.19,137.09,1.31278601]
[1767798354750,6.5661,137.18,137.09,87.53278601]
[1767798354955,6.5661,137.18,137.1,1.31278601]
[1767798355563,6.5661,137.18,137.1,87.53278601]
[1767798355859,6.5652,137.2,137.11,1.31278601]
[1767798356762,6.5655,137.19,137.11,1.31278601]
[1767798356960,227.38702438,137.21,137.11,1.31278601]
[1767798357562,125.26942438,137.21,137.11,1.31278601]
[1767798357757,124.0,137.21,137.11,1.31278601]
[1767798357955,6.5652,137.2,137.12,1.31278601]
[1767798358356,6.5652,137.2,137.12,87.53278601]
[1767798358652,6.5654,137.19,137.12,87.53278601]
[1767798358855,124.0,137.21,137.12,87.53278601]
[1767798359453,107.57090798,137.25,137.13,1.31278601]
[1767798359650,86.24,137.24,137.13,1.31278601]
[1767798359851,102.0988,137.23,137.13,87.53278601]
[1767798360051,130.5641,137.22,137.13,87.53278601]
[1767798360256,102.0997,137.23,137.14,1.31278601]
[1767798360757,6.5642,137.22,137.14,1.31278601]
[1767798360958,124.0,137.23,137.14,1.31278601]
[1767798361156,14.70278845,137.26,137.15,1.31278601]
[1767798361565,14.70278845,137.26,137.17,1.31278601]
[1767798361762,14.70278845,137.26,137.2,1.3086872]
[1767798361969,124.0,137.3,137.2,1.3086872]
[1767798362460,102.0645,137.28,137.22,0.04639147]
[1767798362868,102.1204,137.2,137.11,1.3086872]
[1767798363163,102.1204,137.2,136.93,17.7208209]
[1767798363164,102.1354,137.18,137.07,1.3086872]
[1767798363360,102.1661,137.14,137.0,102.2663]
[1767798363557,102.1509,137.16,137.02,102.2542]
[1767798363758,86.22,137.18,137.04,102.2392]
[1767798363970,86.22,137.18,137.05,188.4105]
[1767798364367,86.22,137.18,137.07,102.2165]
[1767798364576,86.22,137.21,137.08,188.3894]
[1767798364773,86.22,137.21,137.08,91.66470798]
[1767798364964,102.1309,137.19,137.08,86.18]
[1767798365265,102.1272,137.2,137.05,107.71520798]
[1767798365459,188.3378,137.21,137.1,1.3086872]
[1767798365662,5.48470798,137.22,137.11,1.3086872]
[1767798365974,193.81370798,137.22,137.11,1.3086872]
[1767798366160,188.329,137.22,137.11,1.3086872]
[1767798366365,6.5647,137.21,137.11,1.3086872]
[1767798366564,188.329,137.22,137.11,87.4886872]
[1767798366874,86.22,137.22,137.12,1.3086872]
[1767798367359,188.3285,137.22,137.12,1.3086872]
[1767798367759,6.5655,137.19,137.12,1.3086872]
[1767798368168,102.1231,137.2,137.08,1.31866849]
[1767798368372,91.70470798,137.22,137.11,87.49866849]
[1767798368580,107.55460798,137.27,137.13,1.31866849]
[1767798368877,193.77460798,137.27,137.15,1.31866849]
[1767798369069,6.5632,137.24,137.15,1.31866849]
[1767798369371,102.1064,137.22,137.12,86.18]
[1767798369964,6.5647,137.21,137.12,86.18]
[1767798370257,102.1064,137.22,137.12,86.18]
[1767798370461,86.22,137.23,137.12,87.49866849]
[1767798371173,188.3209,137.23,137.12,87.49866849]
[1767798371472,102.1135,137.21,137.12,87.49866849]
[1767798371671,6.5651,137.2,137.12,87.49866849]
[1767798372067,102.1234,137.2,137.12,1.31866849]
[1767798372275,6.5669,137.16,137.09,87.49866849]
[1767798372773,102.1536,137.16,137.06,1.31866849]
[1767798372976,102.1727,137.13,137.03,1.31866849]
[1767798373171,102.1727,137.13,137.03,87.49866849]
[1767798373474,6.62442043,137.12,137.03,1.31866849]
[1767798373674,6.62442043,137.12,137.04,86.18]
[1767798373975,6.569,137.12,137.04,86.18]
[1767798374360,6.568,137.14,137.05,1.31866849]
[1767798374572,6.568,137.14,137.05,87.49866849]
[1767798375464,6.568,137.14,137.05,1.31866849]
[1767798375779,6.568,137.14,137.06,86.18]
[1767798375974,6.567,137.16,137.07,1.31866849]
[1767798376166,188.3436,137.2,137.08,7.88906849]
[1767798376366,86.22,137.2,137.1,1.31866849]
[1767798376677,0.0558254,137.15,137.1,1.31866849]
[1767798376866,102.1158,137.21,137.1,1.31866849]
[1767798377066,102.1258,137.2,137.14,0.05150747]
[1767798377269,102.1258,137.2,137.1,87.49866849]
[1767798377475,102.1297,137.19,137.08,86.18]
[1767798377977,6.5661,137.18,137.08,87.49866849]
[1767798378284,102.1297,137.19,137.08,87.49866849]
[1767798378470,0.04635867,137.14,137.08,1.31866849]
[1767798378673,0.04635867,137.14,137.08,87.49866849]
[1767798378875,0.04635867,137.14,137.08,1.31866849]
[1767798379474,86.22,137.19,137.08,1.31866849]
[1767798379667,6.5674,137.15,137.1,0.04663377]
[1767798379873,193.83610798,137.19,137.1,0.04663377]
[1767798379874,107.63550798,137.16,137.1,0.04663377]
[1767798380069,102.1578,137.15,137.04,1.31866849]
[1767798380571,6.5694,137.11,137.04,1.31866849]
[1767798380872,86.22,137.16,137.03,1.31866849]
[1767798381079,6.568,137.14,137.05,7.89056849]
[1767798381263,6.568,137.14,137.05,1.31866849]
[1767798381469,86.22,137.16,137.05,1.31866849]
[1767798381775,86.22,137.16,137.06,87.49866849]
[1767798381974,102.1591,137.15,137.06,87.49866849]
[1767798382175,0.04698581,137.12,137.06,87.49866849]
[1767798383276,0.04698581,137.12,137.03,1.31866849]
[1767798383581,0.04698581,137.12,137.05,1.31866849]
[1767798383775,188.3656,137.17,137.05,1.31866849]
[1767798384165,5.48053346,137.18,137.05,102.2285]
[1767798384366,5.48053346,137.18,137.06,1.31866849]
[1767798384577,5.48053346,137.18,137.07,87.51866849]
[1767798385474,86.22,137.2,137.11,0.0470901]
[1767798385677,102.106,137.22,137.11,1.36575859]
[1767798385875,102.135,137.19,137.07,1.31866849]
[1767798386281,102.1236,137.2,137.08,6.5705]
[1767798386481,188.3636,137.2,137.08,7.88916849]
[1767798386679,102.136,137.18,137.08,87.51866849]
[1767798386868,102.1283,137.19,137.08,1.31866849]
[1767798387076,102.1283,137.19,137.13,0.04847923]
[1767798388078,6.5668,137.16,137.08,87.51866849]
[1767798388280,0.05113889,137.17,137.05,6.5717]
[1767798388485,0.05113889,137.17,137.06,86.2]
[1767798388781,102.1529,137.16,137.06,86.2]
[1767798388982,102.1434,137.17,137.06,86.2]
[1767798389384,5.48053346,137.18,137.08,6.5704]
[1767798389886,86.22,137.19,137.09,1.31866849]
[1767798390486,102.1236,137.2,137.09,1.31866849]
[1767798390687,6.5666,137.17,137.09,1.31866849]
[1767798390984,102.1281,137.19,137.09,1.31866849]
[1767798391186,6.5669,137.16,137.09,1.31866849]
[1767798391575,102.1467,137.17,137.06,1.31866849]
[1767798391774,6.5678,137.14,137.06,87.51866849]
[1767798392179,6.5669,137.16,137.07,6.571]
[1767798392374,6.5669,137.16,137.09,0.05036222]
[1767798392574,86.22,137.18,137.09,0.05036222]
[1767798392779,102.1236,137.2,137.09,1.48540286]
[1767798392976,102.1236,137.2,137.09,1.43504064]
[1767798393175,6.5663,137.17,137.09,8.00494064]
[1767798393385,102.1357,137.18,137.08,86.2]
[1767798393785,102.1285,137.19,137.12,0.04893317]
[1767798394287,188.3636,137.2,137.12,0.04893317]
[1767798395694,86.24,137.2,137.12,0.04893317]
[1767798395888,102.0942,137.24,137.12,1.48397381]
[1767798396083,102.0942,137.24,137.13,1.43504064]
[1767798396587,102.0628,137.28,137.14,1.43504064]
[1767798396892,188.2828,137.28,137.17,0.05038378]
[1767798397088,6.5628,137.25,137.17,0.05038378]
[1767798397389,188.2828,137.28,137.14,8.00234064]
[1767798397390,102.0773,137.26,137.16,86.2]
[1767798397583,102.0832,137.25,137.14,1.43504064]
[1767798397783,102.0832,137.25,137.15,86.2]
[1767798397990,0.05264263,137.22,137.15,86.2]
[1767798398188,0.05264263,137.22,137.12,86.2]
[1767798398385,6.61694263,137.22,137.14,1.43504064]
[1767798398700,6.5643,137.22,137.14,1.43504064]
[1767798399086,0.04971744,137.19,137.14,1.43504064]
[1767798399693,6.5631,137.24,137.15,1.43504064]
[1767798399889,6.5631,137.24,137.15,1.48239463]
[1767798400193,6.5635,137.23,137.15,87.61504064]
[1767798400691,102.0878,137.25,137.15,1.43504064]
[1767798401694,102.0768,137.26,137.15,1.43504064]
[1767798402199,102.0768,137.26,137.19,0.04898871]
[1767798402794,6.5633,137.24,137.19,0.04898871]
[1767798403495,86.22,137.28,137.19,0.04898871]
[1767798403685,227.3191683,137.3,137.19,0.04898871]
[1767798403886,227.3191683,137.3,137.18,87.61504064]
[1767798404190,6.562,137.26,137.18,87.61504064]
[1767798404587,102.0535,137.29,137.18,1.43504064]
[1767798404790,102.0757,137.26,137.21,0.04932699]
[1767798404991,102.0696,137.27,137.21,0.04932699]
[1767798405189,6.5635,137.23,137.15,1.43504064]
[1767798405387,6.5635,137.23,137.15,87.61504064]
[1767798405994,6.5628,137.25,137.16,1.43504064]
[1767798406197,102.0761,137.26,137.16,1.43504064]
[1767798406597,102.0696,137.27,137.16,1.43504064]
[1767798406598,0.04882832,137.22,137.16,1.43504064]
[1767798407000,86.2,137.28,137.16,1.43504064]
[1767798407190,6.5626,137.25,137.17,1.43504064]
[1767798407501,102.0695,137.27,137.17,1.43504064]
[1767798407888,6.563,137.24,137.17,1.43504064]
[1767798408597,6.5624,137.26,137.19,0.04959675]
[1767798409201,6.5624,137.26,137.18,1.43504064]
[1767798409394,6.5626,137.25,137.18,1.43504064]
[1767798409791,102.0696,137.27,137.14,1.43504064]
[1767798410105,6.5635,137.23,137.15,87.59504064]
[1767798410400,6.5635,137.23,137.16,1.43504064]
[1767798410804,6.5639,137.22,137.16,1.43504064]
[1767798411011,102.0804,137.26,137.16,1.43504064]
[1767798411297,188.2696,137.27,137.18,0.04798487]
[1767798411501,102.0535,137.29,137.18,1.48302551]
[1767798411699,102.0535,137.29,137.18,1.43504064]
[1767798412102,102.0764,137.26,137.15,87.59504064]
[1767798412699,6.5639,137.22,137.15,1.43504064]
[1767798412906,6.5639,137.22,137.15,87.59504064]
[1767798413605,0.04677385,137.2,137.15,1.43504064]
[1767798414610,102.0764,137.26,137.15,8.00204064]
[1767798414800,188.2486,137.27,137.16,1.48346303]
[1767798414998,102.0873,137.25,137.16,1.48346303]
[1767798415202,102.0873,137.25,137.16,1.43504064]
[1767798415705,102.0686,137.27,137.16,1.43504064]
[1767798416008,6.5625,137.25,137.16,8.00174064]
[1767798416204,188.2335,137.29,137.18,1.43504064]
[1767798416409,188.2335,137.29,137.2,0.04846122]
[1767798416607,125.2685683,137.3,137.2,1.48350186]
[1767798416799,124.0,137.3,137.2,1.48350186]
[1767798417001,124.0,137.3,137.2,1.43504064]
[1767798417208,226.0502,137.3,137.18,6.5655]
[1767798417508,226.0502,137.3,137.24,0.05542197]
[1767798417706,102.0617,137.28,137.17,1.43504064]
[1767798417897,102.0617,137.28,137.18,86.16]
[1767798417898,0.05470545,137.25,137.18,86.16]
[1767798418298,0.05470545,137.25,137.18,87.59504064]
[1767798418799,0.05470545,137.25,137.19,1.43504064]
[1767798419003,124.0,137.3,137.2,87.57504064]
[1767798419205,226.0496,137.3,137.2,87.62285533]
[1767798419700,226.0496,137.3,137.2,87.57504064]
[1767798420306,226.0496,137.3,137.13,108.95242958]
[1767798420307,102.0641,137.28,137.18,86.14]
[1767798421010,102.0641,137.28,137.17,1.43504064]
[1767798421199,6.5625,137.25,137.17,94.14124064]
[1767798421407,102.0615,137.28,137.17,87.57504064]
[1767798421602,6.5631,137.24,137.17,87.57504064]
[1767798421799,102.0761,137.26,137.17,1.43504064]
[1767798422108,188.2342,137.29,137.17,1.43504064]
[1767798422310,102.0698,137.27,137.16,86.14]
[1767798422509,102.0698,137.27,137.2,0.04814533]
[1767798423100,6.5634,137.23,137.2,0.04814533]
[1767798423596,0.04681407,137.23,137.14,1.49323067]
[1767798423802,0.04681407,137.23,137.14,87.63323067]
[1767798424001,102.0944,137.24,137.14,1.49323067]
[1767798424202,102.0984,137.23,137.14,1.49323067]
[1767798424610,6.5649,137.2,137.1,1.49323067]
[1767798424814,6.61690088,137.2,137.11,87.63323067]
[1767798425007,6.61690088,137.2,137.12,1.49323067]
[1767798425308,6.5649,137.2,137.12,1.49323067]
[1767798425508,6.5643,137.22,137.13,1.49323067]
[1767798425812,102.0568,137.29,137.16,1.49323067]
[1767798426008,6.5625,137.25,137.17,87.63323067]
[1767798426210,6.5625,137.25,137.18,86.14]
[1767798426815,6.5625,137.25,137.18,87.63323067]
[1767798427312,6.5631,137.24,137.18,87.63323067]
[1767798427513,102.0773,137.26,137.17,86.14]
[1767798427714,102.0849,137.25,137.2,0.04877705]
[1767798428011,102.0849,137.25,137.15,1.49323067]
[1767798428213,102.092,137.24,137.13,86.14]
[1767798428409,102.1055,137.22,137.12,8.06153067]
[1767798428615,102.1388,137.18,137.08,1.49323067]
[1767798428811,102.1502,137.16,137.08,1.49323067]
[1767798429115,0.04960516,137.14,137.08,1.49323067]
[1767798429619,0.04960516,137.14,137.08,8.06373067]
[1767798429911,0.04960516,137.14,137.09,1.49323067]
[1767798430110,6.5666,137.17,137.09,1.49323067]
[1767798430316,6.5656,137.19,137.1,8.06273067]
[1767798430705,102.1279,137.19,137.1,1.49323067]
[1767798430905,6.5668,137.16,137.1,1.49323067]
[1767798431110,102.115,137.21,137.1,1.49323067]
[1767798431315,102.1293,137.19,137.1,1.49323067]
[1767798431817,6.5669,137.16,137.08,87.65323067]
[1767798432004,6.5669,137.16,137.09,1.49323067]
[1767798432206,0.04975456,137.16,137.11,1.49323067]
[1767798432813,6.5652,137.2,137.12,8.06173067]
[1767798433915,6.5655,137.19,137.12,1.49323067]
[1767798434213,6.5655,137.19,137.15,0.04823845]
[1767798435912,0.04664836,137.18,137.08,1.49323067]
[1767798436310,102.1305,137.19,137.08,1.49323067]
[1767798436617,6.567,137.16,137.08,1.49323067]
[1767798436820,197.22593646,137.2,137.08,1.49323067]
[1767798437513,102.1487,137.17,137.05,1.49323067]
[1767798437715,102.1595,137.15,137.05,1.49323067]
[1767798437915,188.3525,137.16,137.05,1.49323067]
[1767798438115,0.04694917,137.12,137.05,1.49323067]
[1767798438617,188.3241,137.2,137.06,1.49323067]
[1767798438822,188.3241,137.2,137.08,1.49323067]
[1767798439019,6.5661,137.18,137.09,1.49323067]
[1767798439820,6.5665,137.17,137.09,1.49323067]
[1767798440020,102.1291,137.19,137.05,1.49323067]
[1767798440227,188.3228,137.2,137.12,0.04870298]
[1767798440521,6.5668,137.16,137.12,0.04870298]
[1767798440728,102.1399,137.18,137.07,87.67323067]
[1767798441221,0.05094516,137.15,137.09,1.49323067]
[1767798441425,102.1086,137.22,137.1,1.49323067]
[1767798441625,86.2,137.23,137.1,1.49323067]
[1767798441826,86.2,137.23,137.11,87.67323067]
[1767798442132,6.5643,137.22,137.13,6.568]
[1767798442428,6.5643,137.22,137.13,1.49323067]
[1767798443219,6.5643,137.22,137.16,0.05262785]
[1767798443518,102.0838,137.25,137.16,0.05262785]
[1767798444023,102.0838,137.25,137.13,87.67323067]
[1767798444326,197.18193646,137.26,137.19,0.04736941]
[1767798444722,102.0947,137.24,137.19,0.04736941]
[1767798444920,6.5645,137.21,137.13,1.49323067]
[1767798445726,188.2846,137.25,137.14,1.49323067]
[1767798445924,102.0846,137.25,137.14,1.49323067]
[1767798446531,6.564,137.22,137.14,1.49323067]
[1767798446930,0.0476758,137.21,137.14,1.49323067]
[1767798447828,0.0476758,137.21,137.11,1.49323067]
[1767798448127,0.0476758,137.21,137.12,1.49323067]
[1767798448336,102.1016,137.23,137.12,1.49323067]
[1767798448627,102.0939,137.24,137.06,21.95]
[1767798448628,0.04663302,137.18,137.09,1.49323067]
[1767798449032,102.1309,137.19,137.09,1.49323067]
[1767798449233,102.1309,137.19,137.07,86.16]
[1767798449234,102.1359,137.18,137.07,86.16]
[1767798449535,102.1309,137.19,137.08,1.49323067]
[1767798449935,0.04893291,137.14,137.08,1.49323067]
[1767798450734,86.2,137.2,137.08,1.49323067]
[1767798450927,6.5656,137.19,137.1,6.62561119]
[1767798451128,6.5656,137.19,137.1,1.54924186]
[1767798451337,6.5656,137.19,137.1,1.49323067]
[1767798452241,6.5656,137.19,137.13,0.05012916]
[1767798452643,95.10323646,137.23,137.13,0.05012916]
[1767798452644,6.5659,137.18,137.13,0.05012916]
[1767798453039,86.2,137.23,137.13,0.05012916]
[1767798453244,86.2,137.23,137.11,6.569]
[1767798453544,102.1212,137.2,137.14,0.05133689]
[1767798453946,102.122,137.2,137.14,0.05133689]
[1767798454133,102.1187,137.21,137.14,0.05133689]
[1767798454536,91.67665316,137.23,137.14,0.05133689]
[1767798454839,6.5648,137.21,137.14,0.05133689]
[1767798455041,91.67665316,137.23,137.14,0.05133689]
[1767798455539,91.67665316,137.23,137.1,1.49323067]
[1767798455742,102.1113,137.22,137.11,1.62183804]
[1767798456044,0.05487784,137.18,137.11,1.62183804]
[1767798457036,0.05487784,137.18,137.09,86.18]
[1767798457237,0.05487784,137.18,137.09,1.62183804]
[1767798457437,102.1329,137.19,137.09,1.62183804]
[1767798457941,0.05169574,137.15,137.09,1.62183804]
[1767798459446,6.61899574,137.15,137.09,1.62183804]
[1767798460038,0.05169574,137.15,137.09,1.62183804]
[1767798460349,86.22,137.2,137.1,1.62183804]
[1767798460644,193.80205316,137.23,137.11,1.67046932]
[1767798460947,193.80205316,137.23,137.11,87.85046932]
[1767798461144,1.26903091,137.25,137.13,1.62183804]
[1767798461334,102.0794,137.26,137.13,1.62183804]
[1767798461540,102.0794,137.26,137.14,87.80183804]
[1767798461847,86.22,137.28,137.15,1.62183804]
[1767798462146,102.0535,137.29,137.19,1.67145261]
[1767798462342,6.562,137.26,137.19,1.67145261]
[1767798462745,6.562,137.26,137.19,1.62183804]
[1767798463049,6.563,137.24,137.17,86.18]
[1767798463348,6.61162116,137.24,137.17,86.18]
[1767798463749,0.04862116,137.24,137.17,87.80183804]
[1767798463948,0.04862116,137.24,137.17,1.62183804]
[1767798464144,0.04862116,137.24,137.17,94.36803804]
[1767798464350,0.04862116,137.24,137.17,87.80183804]
[1767798465246,6.61162116,137.24,137.17,87.80183804]
[1767798465454,6.61162116,137.24,137.17,1.62183804]
[1767798465642,0.04862116,137.24,137.17,1.62183804]
[1767798466552,0.04862116,137.24,137.18,1.62183804]
[1767798467145,124.0,137.3,137.19,1.62183804]
[1767798467549,102.0648,137.28,137.19,1.62183804]
[1767798467753,102.0548,137.29,137.19,87.78183804]
[1767798468148,102.0654,137.28,137.19,87.78183804]
[1767798468356,102.0686,137.27,137.17,86.16]
[1767798468953,0.05000543,137.23,137.17,86.16]
[1767798469152,0.05000543,137.23,137.17,87.78183804]
[1767798469456,0.05000543,137.23,137.17,1.62183804]
[1767798469659,0.05000543,137.23,137.17,87.78183804]
[1767798470465,6.61350543,137.23,137.17,86.16]
[1767798470857,6.61350543,137.23,137.14,1.62183804]
[1767798470858,0.05000543,137.23,137.14,1.62183804]
[1767798471052,6.5651,137.2,137.14,1.62183804]
[1767798471656,0.04657552,137.18,137.14,1.62183804]
[1767798472467,0.04657552,137.18,137.11,8.19083804]
[1767798472761,0.04657552,137.18,137.11,1.62183804]
[1767798472965,102.1232,137.2,137.11,1.62183804]
[1767798473165,102.1232,137.2,137.1,86.16]
[1767798473166,102.098,137.23,137.15,1.62183804]
[1767798473759,0.04986103,137.2,137.15,1.62183804]
[1767798474362,0.04986103,137.2,137.12,1.62183804]
[1767798474560,0.04986103,137.2,137.12,87.78183804]
[1767798475671,6.61486103,137.2,137.12,94.35043804]
[1767798475872,0.04986103,137.2,137.12,94.35043804]
[1767798476057,0.04986103,137.2,137.12,87.78183804]
[1767798476665,0.04986103,137.2,137.12,1.62183804]
[1767798476865,0.04986103,137.2,137.12,87.78183804]
[1767798477263,0.04986103,137.2,137.12,1.62183804]
[1767798478270,0.04986103,137.2,137.08,1.62183804]
[1767798478271,102.1387,137.18,137.08,1.62183804]
[1767798478478,107.61535316,137.18,137.06,87.78183804]
[1767798479468,0.04748535,137.13,137.06,87.78183804]
[1767798479676,0.04748535,137.13,137.06,94.35313804]
[1767798480470,0.04748535,137.13,137.08,1.62183804]
[1767798480675,0.04748535,137.13,137.08,87.78183804]
[1767798480866,6.567,137.16,137.08,87.78183804]
[1767798481367,6.5674,137.15,137.08,87.78183804]
[1767798481772,188.329,137.19,137.09,1.61790378]
[1767798482069,6.5665,137.17,137.09,1.61790378]
[1767798482572,0.04652109,137.15,137.09,1.61790378]
[1767798482767,86.2,137.19,137.05,102.2292]
[1767798482768,6.5657,137.19,137.11,1.61790378]
[1767798482974,5.47665316,137.23,137.11,1.61790378]
[1767798483565,6.5639,137.22,137.14,1.61790378]
[1767798483769,188.2869,137.25,137.14,1.61790378]
[1767798483770,102.0995,137.23,137.14,1.61790378]
[1767798484174,102.1162,137.21,137.1,87.79790378]
[1767798484666,6.5659,137.18,137.1,87.79790378]
[1767798485169,6.5652,137.2,137.1,94.36740378]
[1767798485375,102.1092,137.22,137.13,0.04710361]
[1767798485675,102.1137,137.21,137.13,0.04710361]
[1767798485877,102.1137,137.21,137.11,1.61790378]
[1767798486176,6.5658,137.18,137.11,1.61790378]
[1767798486871,6.5664,137.17,137.11,1.61790378]
[1767798487074,102.1092,137.22,137.11,1.61790378]
[1767798487377,102.1149,137.21,137.11,1.61790378]
[1767798487862,102.1149,137.21,137.01,115.66852672]
[1767798487863,102.1321,137.19,137.08,1.61790378]
[1767798488875,6.5669,137.16,137.12,0.04640897]
[1767798489378,6.5678,137.14,137.06,86.18]
[1767798489767,6.5678,137.14,137.06,87.79790378]
[1767798489969,6.5678,137.14,137.06,1.61790378]
[1767798490777,6.5678,137.14,137.06,8.18930378]
[1767798490976,102.0937,137.24,137.09,102.1988]
[1767798491164,103.8652303,137.23,137.12,1.61790378]
[1767798491368,1.7605303,137.21,137.12,1.61790378]
[1767798491563,6.5658,137.18,137.1,6.5693]
[1767798491769,103.8762303,137.21,137.1,92.7493]
[1767798491966,1.7605303,137.2,137.1,87.79790378]
[1767798492267,1.7605303,137.23,137.13,1.61790378]
[1767798492872,0.04824639,137.19,137.13,1.61790378]
[1767798493373,0.04824639,137.19,137.13,87.79790378]
[1767798493974,0.04824639,137.19,137.1,8.18730378]
[1767798494174,0.04824639,137.19,137.11,87.79790378]
[1767798494471,1.7605303,137.21,137.11,1.61790378]
[1767798494673,1.7605303,137.21,137.11,87.79790378]
[1767798495375,1.7605303,137.19,137.1,87.79790378]
[1767798495679,0.04721668,137.17,137.1,87.79790378]
[1767798495872,0.04721668,137.17,137.11,1.61790378]
[1767798496668,8.3242303,137.23,137.13,8.18590378]
[1767798496870,1.7605303,137.23,137.13,8.18590378]
[1767798497480,6.5639,137.22,137.14,6.5676]
[1767798497681,6.5639,137.22,137.13,87.79790378]
[1767798498178,1.7605303,137.23,137.17,0.04754194]
[1767798498580,6.5645,137.21,137.13,1.61790378]
[1767798498778,1.81071974,137.21,137.13,1.61790378]
[1767798499375,0.05018944,137.21,137.13,1.61790378]
[1767798500181,0.05018944,137.21,137.16,1.61790378]
[1767798500376,0.05018944,137.21,137.16,87.79790378]
[1767798500578,86.2,137.27,137.18,1.61790378]
[1767798500875,103.8139303,137.29,137.18,1.61790378]
[1767798500876,1.7605303,137.29,137.18,1.61790378]
[1767798501279,1.7605303,137.28,137.18,1.61790378]
[1767798501682,1.7605303,137.27,137.17,86.18]
[1767798501875,6.5636,137.23,137.15,87.79790378]
[1767798502183,1.7605303,137.25,137.15,87.79790378]
[1767798502377,6.563,137.24,137.16,6.5667]
[1767798503177,1.7605303,137.25,137.16,8.18460378]
[1767798503383,1.7605303,137.25,137.17,6.5662]